bitfinex-derivatives/quotes_SOLF0:USTF0_20250819
["timestamp","ask_amount","ask_price","bid_price","bid_amount"]
[1755637127681,0.26,178.64,178.59,0.0386205]
[1755637127881,0.26,178.64,178.6,2.97]
[1755637128778,0.26,178.64,178.59,0.0386205]
[1755637128982,0.26,178.64,178.61,2.97]
[1755637130773,0.26,178.66,178.6,2.97]
[1755637133289,142.50536743,178.68,178.6,2.97]
[1755637133688,0.26,178.73,178.6,2.97]
[1755637133988,2.54228773,178.72,178.6,2.97]
[1755637134290,4.78536743,178.73,178.6,2.97]
[1755637134291,0.035523,178.68,178.6,2.97]
[1755637134592,0.035523,178.68,178.65,2.97]
[1755637134792,0.26,178.66,178.64,0.04061038]
[1755637135092,0.26,178.65,178.64,0.04061038]
[1755637137889,5.04536743,178.67,178.64,0.04061038]
[1755637138391,0.27,178.66,178.64,0.04061038]
[1755637140892,4.78536743,178.67,178.64,0.04061038]
[1755637141192,4.78536743,178.67,178.53,3.11]
[1755637141193,0.23,178.65,178.53,3.11]
[1755637141386,4.78536743,178.62,178.53,3.11]
[1755637142288,0.03534849,178.59,178.53,3.11]
[1755637143192,0.26534849,178.59,178.53,3.11]
[1755637143789,0.03534849,178.59,178.53,3.11]
[1755637145185,5.01536743,178.65,178.54,0.03538643]
[1755637145392,0.23,178.65,178.54,4.82075386]
[1755637145589,0.23,178.65,178.55,3.11]
[1755637146587,5.04536743,178.68,178.55,3.11]
[1755637146983,5.04536743,178.68,178.55,5.6007]
[1755637147183,5.04536743,178.68,178.56,3.11]
[1755637151387,0.26,178.68,178.57,4.78536743]
[1755637151588,5.04536743,178.71,178.58,3.11]
[1755637151788,0.26,178.71,178.6,4.78536743]
[1755637152101,0.26,178.71,178.61,3.11]
[1755637152898,4.78536743,178.68,178.56,3.11]
[1755637153200,0.26,178.67,178.56,3.11]
[1755637155299,0.26,178.67,178.56,8.7104]
[1755637155500,0.26,178.67,178.57,3.11]
[1755637158003,0.26,178.67,178.57,7.89536743]
[1755637158201,0.26,178.67,178.58,3.11]
[1755637161199,0.26,178.67,178.58,8.7098]
[1755637161405,0.26,178.71,178.58,3.11]
[1755637161703,2.55525049,178.7,178.58,3.11]
[1755637161904,0.26,178.71,178.61,3.11]
[1755637174915,0.26,178.71,178.61,8.7087]
[1755637175112,0.26,178.71,178.62,3.1]
[1755637176419,0.26,178.71,178.62,8.6985]
[1755637176715,0.26,178.71,178.62,5.5985]
[1755637176918,0.26,178.71,178.63,8.6982]
[1755637177310,0.26,178.71,178.64,3.1]
[1755637178009,4.78536743,178.74,178.64,5.5979]
[1755637178208,5.04536743,178.74,178.65,3.1]
[1755637180220,0.26,178.73,178.65,3.1]
[1755637182822,0.26,178.73,178.61,143.15740107]
[1755637183024,377.33403961,178.78,178.62,3.1]
[1755637183025,0.26,178.7,178.62,3.1]
[1755637189921,6.27936184,178.76,178.61,147.9427685]
[1755637190125,0.26,178.74,178.66,3.1]
[1755637191425,2.54399172,178.73,178.62,4.78536743]
[1755637191629,0.26,178.72,178.63,3.1]
[1755637193728,6.27936184,178.75,178.63,3.1]
[1755637193729,0.26,178.75,178.63,3.1]
[1755637193916,2.54462677,178.74,178.63,3.1]
[1755637194119,0.26,178.75,178.63,5.598]
[1755637194321,0.26,178.73,178.64,3.1]
[1755637196634,4.78536743,178.73,178.64,3.1]
[1755637196821,0.26,178.72,178.64,3.1]
[1755637199630,0.26,178.75,178.64,3.1]
[1755637200023,0.26,178.75,178.64,8.6978]
[1755637200223,0.26,178.75,178.63,2.99]
[1755637200628,2.54593612,178.74,178.63,5.598]
[1755637200825,0.26,178.73,178.64,2.99]
[1755637202723,0.26,178.73,178.62,4.78536743]
[1755637202724,0.26,178.71,178.59,2.99]
[1755637202934,0.26,178.7,178.59,2.99]
[1755637203528,0.26,178.67,178.59,2.99]
[1755637205333,5.04536743,178.65,178.57,139.26]
[1755637205533,5.04536743,178.65,178.56,2.99]
[1755637206133,6.27936184,178.69,178.56,2.99]
[1755637206134,5.04536743,178.68,178.56,2.99]
[1755637206329,5.04536743,178.68,178.57,2.99]
[1755637207837,5.04536743,178.68,178.57,8.5901]
[1755637208029,5.04536743,178.68,178.58,2.99]
[1755637208232,0.26,178.71,178.59,4.78536743]
[1755637208427,2.54640818,178.7,178.6,2.99]
[1755637208733,0.26,178.69,178.6,2.99]
[1755637210832,0.26,178.72,178.62,2.99]
[1755637211033,2.54636618,178.71,178.62,2.99]
[1755637211231,0.26,178.72,178.62,2.99]
[1755637212530,0.26,178.7,178.62,2.99]
[1755637217027,2.53754338,178.69,178.61,140.36]
[1755637217245,0.26,178.68,178.61,140.36]
[1755637218944,0.26,178.66,178.57,2.99]
[1755637219253,2.53712189,178.65,178.57,2.99]
[1755637219547,0.26,178.64,178.54,376.3]
[1755637220944,4.78536743,178.63,178.54,376.3]
[1755637221148,0.26,178.62,178.54,376.3]
[1755637221351,0.26,178.62,178.53,2.99]
[1755637222152,0.26,178.65,178.53,2.99]
[1755637222355,0.26,178.63,178.53,2.99]
[1755637224654,4.78536743,178.66,178.54,2.99]
[1755637224655,5.04536743,178.66,178.54,2.99]
[1755637226957,0.26,178.66,178.55,4.78536743]
[1755637227351,0.26,178.66,178.56,2.99]
[1755637228256,5.04536743,178.69,178.56,2.99]
[1755637228449,5.04536743,178.69,178.56,5.6002]
[1755637228653,0.26,178.68,178.57,2.9]
[1755637230256,0.26,178.68,178.57,4.78536743]
[1755637230458,0.26,178.71,178.58,2.9]
[1755637230854,0.26,178.71,178.59,5.5993]
[1755637231058,0.26,178.71,178.6,2.9]
[1755637233260,2.53172959,178.7,178.6,2.9]
[1755637233459,2.79183126,178.69,178.6,2.9]
[1755637233654,0.26,178.68,178.6,2.9]
[1755637241469,2.53387698,178.67,178.6,2.9]
[1755637241764,0.26,178.65,178.55,2.9]
[1755637243160,4.78536743,178.63,178.55,2.9]
[1755637243368,0.26,178.62,178.55,2.9]
[1755637243772,4.78536743,178.6,178.52,2.9]
[1755637245171,0.26,178.61,178.52,2.9]
[1755637245371,5.04536743,178.61,178.52,2.9]
[1755637252373,0.26,178.61,178.52,2.9]
[1755637259583,4.78536743,178.57,178.52,3.08]
[1755637259787,0.27,178.56,178.51,143.82154489]
[1755637259985,5.05536743,178.59,178.52,3.08]
[1755637260489,0.27,178.58,178.52,3.08]
[1755637267395,5.05536743,178.6,178.52,3.08]
[1755637269796,4.78536743,178.6,178.52,3.08]
[1755637269999,0.27,178.62,178.52,3.08]
[1755637270700,16.82,178.71,178.52,3.08]
[1755637270701,0.27,178.59,178.52,3.08]
[1755637273300,0.27,178.56,178.48,3.08]
[1755637274895,4.78536743,178.6,178.48,3.08]
[1755637275101,0.27,178.61,178.5,3.08]
[1755637277805,0.27,178.61,178.5,8.6823]
[1755637277995,0.27,178.61,178.51,3.08]
[1755637278202,0.27,178.64,178.53,3.08]
[1755637279396,0.27,178.64,178.53,8.6814]
[1755637279600,0.27,178.64,178.53,3.08]
[1755637281406,2.55018588,178.63,178.53,3.08]
[1755637281607,0.27,178.64,178.53,3.08]
[1755637281907,2.55021558,178.63,178.53,3.08]
[1755637282109,0.27,178.64,178.53,8.6814]
[1755637282405,0.27,178.64,178.54,3.08]
[1755637282606,0.27,178.64,178.55,5.6007]
[1755637282799,0.27,178.64,178.56,3.08]
[1755637283801,0.27,178.67,178.56,5.6004]
[1755637284007,2.55104786,178.66,178.57,3.08]
[1755637284208,0.27,178.67,178.57,3.08]
[1755637284509,2.55135785,178.66,178.57,3.08]
[1755637284706,0.27,178.67,178.57,3.08]
[1755637284910,2.55135785,178.66,178.57,3.08]
[1755637285109,0.27,178.65,178.57,3.08]
[1755637286007,0.27,178.63,178.57,3.08]
[1755637286205,0.27,178.63,178.54,140.88]
[1755637286406,2.55270807,178.62,178.54,143.96]
[1755637286606,0.27,178.61,178.54,143.96]
[1755637287610,0.27,178.61,178.55,3.08]
[1755637293515,0.27,178.61,178.52,161.16357212]
[1755637293815,0.27,178.59,178.53,2.93]
[1755637295214,2.55343138,178.58,178.53,2.93]
[1755637295411,6.27936184,178.61,178.53,2.93]
[1755637295712,0.27,178.56,178.53,2.93]
[1755637296716,4.78536743,178.59,178.52,161.16357212]
[1755637296922,0.27,178.57,178.52,161.16357212]
[1755637297121,0.27,178.56,178.52,161.16357212]
[1755637297310,0.27,178.58,178.52,161.16357212]
[1755637297616,0.27,178.55,178.52,161.16357212]
[1755637298319,0.27,178.55,178.52,164.09357212]
[1755637300021,5.05536743,178.59,178.53,2.93]
[1755637300218,2.82233972,178.58,178.54,2.93]
[1755637300418,0.27,178.58,178.52,161.16357212]
[1755637300614,0.27,178.58,178.55,2.93]
[1755637301316,4.78536743,178.62,178.52,161.16357212]
[1755637301523,2.82186057,178.61,178.53,2.93]
[1755637301712,0.27,178.59,178.53,2.93]
[1755637306421,0.27,178.57,178.52,161.16357212]
[1755637306620,4.78536743,178.59,178.52,161.16357212]
[1755637306621,0.27,178.55,178.52,161.16357212]
[1755637306823,0.27,178.55,178.52,164.09357212]
[1755637308322,0.27,178.55,178.53,2.93]
[1755637308629,4.78536743,178.59,178.52,161.16357212]
[1755637308928,0.27,178.56,178.52,161.16357212]
[1755637309118,4.78536743,178.59,178.52,161.16357212]
[1755637309323,0.27,178.54,178.52,161.16357212]
[1755637309930,0.27,178.58,178.52,161.16357212]
[1755637311118,0.27,178.55,178.52,161.16357212]
[1755637311317,0.27,178.54,178.48,143.85]
[1755637313331,0.27,178.54,178.4,382.68999455]
[1755637313332,4.78536743,178.53,178.45,2.93]
[1755637313534,0.27,178.52,178.45,2.93]
[1755637318028,0.27,178.51,178.45,2.93]
[1755637318233,0.27,178.5,178.41,3.14]
[1755637318625,0.27,178.47,178.4,141.0]
[1755637319428,0.27,178.47,178.39,3.14]
[1755637319627,4.78536743,178.56,178.34,141.56]
[1755637319628,0.27,178.44,178.34,141.56]
[1755637319834,0.27,178.44,178.35,3.14]
[1755637320934,4.78536743,178.45,178.35,3.14]
[1755637322232,5.05536743,178.45,178.35,3.14]
[1755637323736,0.27,178.44,178.35,3.14]
[1755637324431,5.05536743,178.47,178.35,3.14]
[1755637325839,0.27,178.47,178.35,5.6069]
[1755637326041,0.27,178.47,178.36,3.14]
[1755637326439,0.27,178.47,178.36,13.53186743]
[1755637326640,0.27,178.47,178.37,3.14]
[1755637327037,0.27,178.5,178.37,3.14]
[1755637327631,0.27,178.5,178.39,3.14]
[1755637328240,0.27,178.5,178.4,3.14]
[1755637329134,0.27,178.5,178.41,3.14]
[1755637329344,0.27,178.53,178.42,4.78536743]
[1755637329542,0.27,178.53,178.43,3.14]
[1755637330630,0.27,178.53,178.43,8.7444]
[1755637330835,0.27,178.56,178.45,4.78536743]
[1755637331039,0.27,178.56,178.46,3.14]
[1755637332142,0.27,178.56,178.46,8.7433]
[1755637332343,0.27,178.56,178.47,3.14]
[1755637332944,0.27,178.56,178.48,3.14]
[1755637333641,0.27,178.6,178.49,3.14]
[1755637340044,0.27,178.6,178.51,4.78536743]
[1755637340350,0.27,178.63,178.52,3.14]
[1755637341341,0.27,178.63,178.55,3.14]
[1755637345755,0.27,178.63,178.54,4.78536743]
[1755637345756,0.27,178.63,178.52,3.14]
[1755637347054,0.27,178.6,178.52,3.14]
[1755637350459,0.27,178.65,178.53,2.98]
[1755637351849,0.27,178.65,178.53,8.5811]
[1755637352051,0.27,178.65,178.54,2.98]
[1755637352254,0.27,178.65,178.54,8.581]
[1755637352446,0.27,178.65,178.56,2.98]
[1755637356156,0.27,178.65,178.45,157.22]
[1755637356157,4.78536743,178.63,178.51,2.98]
[1755637356463,0.27,178.59,178.51,2.98]
[1755637373068,0.27,178.62,178.51,7.76536743]
[1755637373266,0.27,178.62,178.52,2.98]
[1755637376779,0.27,178.62,178.52,8.5817]
[1755637376978,0.27,178.62,178.53,2.98]
[1755637377679,5.05536743,178.65,178.55,2.98]
[1755637377974,2.5290118,178.64,178.55,2.98]
[1755637378179,0.27,178.65,178.55,2.98]
[1755637378477,2.52886315,178.64,178.55,2.98]
[1755637378675,0.27,178.65,178.55,2.98]
[1755637378976,2.52886315,178.64,178.55,2.98]
[1755637379174,0.27,178.65,178.55,2.98]
[1755637379381,2.52871366,178.64,178.55,2.98]
[1755637379580,0.27,178.65,178.55,2.98]
[1755637379774,2.52871366,178.64,178.55,2.98]
[1755637379968,0.27,178.65,178.55,2.98]
[1755637380173,2.52871366,178.64,178.55,2.98]
[1755637380374,0.27,178.65,178.55,2.98]
[1755637380575,2.52872086,178.64,178.55,2.98]
[1755637380870,0.27,178.65,178.55,2.98]
[1755637381077,2.52872086,178.64,178.55,2.98]
[1755637381371,0.27,178.65,178.55,2.98]
[1755637381571,2.52873378,178.64,178.55,2.98]
[1755637381774,0.27,178.65,178.55,2.98]
[1755637381976,2.52861264,178.64,178.55,2.98]
[1755637382173,0.27,178.65,178.55,2.98]
[1755637382381,2.52849748,178.64,178.55,2.98]
[1755637382682,0.27,178.65,178.55,2.98]
[1755637383578,2.52826435,178.64,178.55,2.98]
[1755637383784,2.79843771,178.63,178.55,2.98]
[1755637383981,0.27,178.62,178.55,2.98]
[1755637384493,2.52869436,178.61,178.52,143.88]
[1755637384680,0.27,178.6,178.52,143.88]
[1755637389689,0.27,178.6,178.52,3.06]
[1755637398089,4.78536743,178.59,178.52,3.06]
[1755637398294,0.27,178.58,178.52,3.06]
[1755637399289,0.27,178.58,178.46,140.28]
[1755637399495,0.27,178.55,178.47,3.06]
[1755637410703,4.78536743,178.58,178.47,3.06]
[1755637410895,5.03536743,178.58,178.47,3.06]
[1755637411100,0.25,178.58,178.47,3.06]
[1755637411403,0.25,178.58,178.5,2.87]
[1755637411608,5.03536743,178.61,178.5,2.87]
[1755637411795,0.25,178.61,178.5,2.87]
[1755637412195,2.52639538,178.6,178.5,2.87]
[1755637412402,0.25,178.59,178.5,2.87]
[1755637414311,2.52657049,178.58,178.5,2.87]
[1755637414507,0.25,178.59,178.5,2.87]
[1755637414703,2.52668389,178.58,178.5,2.87]
[1755637415003,0.25,178.57,178.5,2.87]
[1755637416303,4.78536743,178.55,178.47,2.87]
[1755637416508,0.25,178.54,178.47,2.87]
[1755637428511,4.78536743,178.55,178.47,2.87]
[1755637435718,0.25,178.54,178.47,2.87]
[1755637448818,0.27,178.59,178.5,4.78536743]
[1755637449022,0.27,178.59,178.51,2.93]
[1755637449223,6.27936184,178.61,178.51,2.93]
[1755637449424,6.54936184,178.62,178.51,2.93]
[1755637450129,6.54936184,178.62,178.51,8.532]
[1755637450331,6.54936184,178.62,178.52,2.93]
[1755637450727,0.27,178.61,178.52,2.93]
[1755637451935,6.54936184,178.62,178.52,2.93]
[1755637452927,0.27,178.6,178.52,2.93]
[1755637453129,6.27936184,178.6,178.52,2.93]
[1755637453326,0.27,178.59,178.52,2.93]
[1755637459232,6.27936184,178.6,178.52,2.93]
[1755637459233,6.27936184,178.61,178.52,2.93]
[1755637459431,6.54936184,178.62,178.52,2.93]
[1755637459632,6.27936184,178.61,178.52,2.93]
[1755637459836,6.54936184,178.62,178.52,2.93]
[1755637460630,0.27,178.62,178.54,2.93]
[1755637466642,0.27,178.65,178.56,4.78536743]
[1755637466842,0.27,178.65,178.57,2.93]
[1755637468336,0.27,178.65,178.57,7.71536743]
[1755637468536,0.27,178.65,178.58,3.03]
[1755637471144,11.06472927,178.69,178.58,3.03]
[1755637471145,0.26,178.68,178.58,3.03]
[1755637471742,0.26,178.67,178.58,3.03]
[1755637477949,0.26,178.67,178.54,4.78536743]
[1755637477950,0.26,178.65,178.51,7.81536743]
[1755637478146,0.26,178.65,178.52,3.03]
[1755637478343,0.26,178.62,178.52,3.03]
[1755637487058,0.26,178.62,178.53,4.78536743]
[1755637487259,0.26,178.62,178.54,3.03]
[1755637488763,9.44265542,178.69,178.54,3.03]
[1755637488764,0.26,178.65,178.54,3.03]
[1755637489764,0.26,178.65,178.54,8.631]
[1755637490064,0.26,178.65,178.57,3.03]
[1755637495564,6.27936184,178.68,178.58,5.5996]
[1755637495869,6.53936184,178.7,178.6,3.03]
[1755637496073,0.26,178.7,178.6,3.03]
[1755637496269,0.26,178.7,178.6,8.6291]
[1755637496470,0.26,178.7,178.61,3.03]
[1755637497975,0.26,178.7,178.63,3.03]
[1755637500171,6.27936184,178.73,178.63,8.6281]
[1755637500371,0.26,178.73,178.64,3.09]
[1755637502373,6.53936184,178.73,178.65,4.78536743]
[1755637502574,6.53936184,178.73,178.66,3.09]
[1755637503370,0.26,178.72,178.63,3.09]
[1755637503570,0.26,178.71,178.63,3.09]
[1755637506667,6.53936184,178.76,178.65,4.78536743]
[1755637506868,6.53936184,178.76,178.66,3.09]
[1755637507073,6.27936184,178.76,178.66,3.09]
[1755637507273,0.26,178.75,178.66,3.09]
[1755637514792,0.26,178.73,178.66,3.09]
[1755637515689,0.26,178.73,178.64,3.09]
[1755637515894,0.26,178.72,178.64,3.09]
[1755637517294,0.26,178.72,178.61,3.09]
[1755637517489,2.52213035,178.71,178.61,3.09]
[1755637517693,0.26,178.7,178.61,3.09]
[1755637518090,0.26,178.69,178.58,3.09]
[1755637518692,0.26,178.67,178.58,3.09]
[1755637518895,0.03764478,178.65,178.58,3.09]
[1755637519094,0.26,178.64,178.62,0.0419492]
[1755637520191,0.03764478,178.65,178.62,0.0419492]
[1755637520389,0.26,178.63,178.62,0.0419492]
[1755637525697,0.7180508,178.61,178.54,3.09]
[1755637525904,0.26,178.61,178.54,3.09]
[1755637526403,0.26,178.6,178.54,3.09]
[1755637526995,0.0429016,178.59,178.54,3.09]
[1755637527199,0.26,178.58,178.54,3.09]
[1755637529097,0.26,178.58,178.54,2.87]
[1755637529403,0.26,178.58,178.48,143.56536743]
[1755637529404,0.26,178.58,178.55,2.87]
[1755637530507,0.26,178.58,178.48,143.56536743]
[1755637530508,0.26,178.58,178.51,2.87]
[1755637534509,0.0429016,178.59,178.51,2.87]
[1755637535405,0.3029016,178.59,178.51,2.87]
[1755637536111,0.0429016,178.59,178.51,2.87]
[1755637546210,0.0429016,178.59,178.53,2.87]
[1755637547915,0.0429016,178.59,178.53,8.4714]
[1755637548116,0.0429016,178.59,178.54,2.87]
[1755637550013,0.0429016,178.59,178.54,8.4711]
[1755637550210,0.0429016,178.59,178.54,147.1711]
[1755637550516,0.0429016,178.59,178.55,2.87]
[1755637550716,0.0429016,178.59,178.55,7.65536743]
[1755637550918,0.26,178.66,178.56,2.87]
[1755637552308,0.26,178.66,178.55,4.78536743]
[1755637552309,0.26,178.66,178.58,2.87]
[1755637552509,0.26,178.66,178.58,7.65536743]
[1755637552714,0.26,178.66,178.59,2.87]
[1755637559422,0.26,178.66,178.58,4.78536743]
[1755637560326,0.26,178.66,178.54,144.301]
[1755637560327,0.26,178.66,178.59,2.86]
[1755637562129,0.29,178.69,178.6,2.86]
[1755637566231,0.29,178.69,178.6,8.4591]
[1755637566422,0.29,178.69,178.6,2.86]
[1755637566625,0.29,178.69,178.62,4.78536743]
[1755637566824,0.29,178.69,178.63,2.86]
[1755637567627,138.68,178.73,178.63,2.86]
[1755637567829,2.81558881,178.72,178.63,2.86]
[1755637568017,0.29,178.72,178.63,2.86]
[1755637577740,4.78536743,178.71,178.63,2.86]
[1755637577940,0.31,178.7,178.63,2.86]
[1755637580139,0.31,178.72,178.63,2.86]
[1755637587546,138.68,178.73,178.63,2.86]
[1755637590448,138.99,178.73,178.63,2.86]
[1755637591044,0.31,178.72,178.63,2.86]
[1755637594251,6.27936184,178.72,178.63,2.86]
[1755637594551,0.31,178.71,178.63,2.86]
[1755637596249,0.31,178.7,178.63,2.86]
[1755637596952,6.27936184,178.7,178.63,2.86]
[1755637597153,0.31,178.69,178.63,2.86]
[1755637601452,6.27936184,178.7,178.63,2.86]
[1755637602352,6.58936184,178.7,178.63,2.86]
[1755637603149,2.52784512,178.69,178.63,2.86]
[1755637603356,2.83784512,178.68,178.6,4.78536743]
[1755637603554,0.31,178.68,178.65,3.14]
[1755637605053,0.31,178.67,178.61,171.67419026]
[1755637605251,0.31,178.67,178.63,3.14]
[1755637605950,0.31,178.67,178.61,171.67419026]
[1755637606155,0.31,178.67,178.63,3.14]
[1755637606352,0.31,178.67,178.64,3.14]
[1755637606546,0.31,178.67,178.61,171.67419026]
[1755637606547,0.31,178.68,178.61,174.81419026]
[1755637606748,2.52879792,178.67,178.61,174.81419026]
[1755637606965,0.31,178.68,178.61,174.81419026]
[1755637607158,2.52879792,178.67,178.61,174.81419026]
[1755637607359,0.31,178.68,178.61,174.81419026]
[1755637607556,2.52885597,178.67,178.61,174.81419026]
[1755637607754,0.31,178.68,178.61,174.81419026]
[1755637607955,2.83885597,178.67,178.61,174.81419026]
[1755637608155,0.31,178.67,178.61,174.81419026]
[1755637609962,2.52885312,178.66,178.61,171.67419026]
[1755637610158,0.31,178.67,178.61,171.67419026]
[1755637610459,6.27936184,178.69,178.62,3.14]
[1755637610657,2.52876735,178.68,178.62,3.14]
[1755637610850,6.27936184,178.71,178.62,3.14]
[1755637611047,6.27936184,178.71,178.61,171.67419026]
[1755637611048,2.52837711,178.7,178.64,3.14]
[1755637611256,2.52837711,178.69,178.64,3.14]
[1755637611458,6.27936184,178.71,178.64,3.14]
[1755637611655,6.58936184,178.73,178.64,3.14]
[1755637611958,6.58936184,178.73,178.63,143.08536743]
[1755637611959,6.27936184,178.75,178.66,4.78536743]
[1755637612160,2.52797084,178.74,178.67,3.14]
[1755637612362,6.27936184,178.77,178.67,3.14]
[1755637612564,2.5266016,178.76,178.67,3.14]
[1755637612765,2.5266016,178.75,178.67,3.14]
[1755637612960,6.27936184,178.77,178.67,3.14]
[1755637613161,2.52660108,178.76,178.68,3.14]
[1755637613362,2.52660108,178.75,178.68,3.14]
[1755637613657,6.27936184,178.78,178.7,3.14]
[1755637613863,2.525357,178.77,178.7,3.14]
[1755637614057,6.27936184,178.8,178.7,3.14]
[1755637614258,2.52523418,178.79,178.7,3.14]
[1755637614460,2.52515253,178.78,178.7,3.14]
[1755637614664,6.27936184,178.8,178.7,3.14]
[1755637614962,2.52354678,178.79,178.7,3.14]
[1755637615164,2.52354652,178.78,178.7,3.14]
[1755637615363,6.58936184,178.81,178.7,3.14]
[1755637615563,2.52218687,178.8,178.7,3.14]
[1755637615762,2.52218687,178.79,178.7,3.14]
[1755637615967,2.52218687,178.78,178.7,3.14]
[1755637616262,6.58936184,178.81,178.7,3.14]
[1755637616463,2.5211646,178.8,178.7,3.14]
[1755637616663,2.5211646,178.79,178.7,3.14]
[1755637616966,6.27936184,178.81,178.7,3.14]
[1755637617159,0.31,178.79,178.7,3.14]
[1755637625169,0.31,178.77,178.7,3.14]
[1755637629566,0.31,178.76,178.64,4.78536743]
[1755637629766,0.31,178.76,178.67,3.0]
[1755637630865,2.51667332,178.75,178.67,3.0]
[1755637631069,0.31,178.76,178.67,3.0]
[1755637631266,0.31,178.74,178.67,3.0]
[1755637631665,4.78536743,178.74,178.67,3.0]
[1755637631868,0.31,178.73,178.67,3.0]
[1755637633274,4.78536743,178.71,178.63,3.0]
[1755637633471,0.31,178.7,178.63,3.0]
[1755637633873,2.53752665,178.69,178.63,3.0]
[1755637634069,0.31,178.67,178.63,3.0]
[1755637634269,0.31,178.66,178.63,3.0]
[1755637636169,0.31,178.66,178.61,171.67419026]
[1755637636375,0.31,178.66,178.63,3.0]
[1755637637175,0.31,178.66,178.62,3.0]
[1755637637376,0.31,178.66,178.63,3.0]
[1755637639680,0.31,178.66,178.63,3.03729652]
[1755637639881,0.31,178.67,178.63,0.03729652]
[1755637640074,0.31,178.64,178.63,0.03729652]
[1755637640575,4.78536743,178.65,178.63,0.03729652]
[1755637640775,0.04176672,178.66,178.63,3.03729652]
[1755637641178,0.04176672,178.66,178.64,3.0]
[1755637641373,0.04176672,178.66,178.63,0.03729652]
[1755637641577,0.35176672,178.66,178.63,0.03729652]
[1755637641875,0.35176672,178.66,178.63,3.03729652]
[1755637643083,0.31,178.65,178.63,0.03729652]
[1755637643384,0.31,178.64,178.63,0.03729652]
[1755637643881,0.56,178.64,178.56,3.0]
[1755637644086,0.27,178.63,178.56,3.0]
[1755637645379,0.04071667,178.61,178.54,138.14]
[1755637645588,0.04071667,178.61,178.59,3.0]
[1755637646079,0.04071667,178.61,178.57,3.0]
[1755637646286,0.31071667,178.61,178.58,3.0]
[1755637646881,0.04071667,178.61,178.59,3.0]
[1755637647081,0.04071667,178.61,178.55,3.0]
[1755637650488,0.26,178.6,178.52,3.15]
[1755637651284,0.03609056,178.58,178.52,3.15]
[1755637653687,0.03609056,178.58,178.47,413.91104666]
[1755637653688,0.26,178.57,178.48,3.15]
[1755637654488,0.04197179,178.54,178.48,3.15]
[1755637660603,0.04197179,178.54,178.48,8.7528]
[1755637660808,0.04197179,178.54,178.49,3.15]
[1755637661004,0.04197179,178.54,178.51,3.15]
[1755637662800,0.04197179,178.54,178.5,4.78536743]
[1755637663004,0.04197179,178.54,178.53,3.15]
[1755637663414,0.26,178.6,178.53,3.15]
[1755637663704,0.26,178.6,178.53,7.93536743]
[1755637664006,0.26,178.6,178.54,3.15]
[1755637670711,0.26,178.6,178.52,138.18097112]
[1755637671112,0.26,178.6,178.52,141.33097112]